[Event "48th Continental Open"]
[Site "Sturbridge, MA"]
[Date "2018.08.20"]
[Round "9.6"]
[White "Otchiyev, Arslan"]
[Black "Shanmugasundaram, Coimbatore"]
[Result "1/2-1/2"]
[ECO "B44"]
[WhiteElo "2333"]
[BlackElo "2147"]
[PlyCount "31"]
[EventDate "2018.08.??"]
[EventType "swiss"]
[EventRounds "9"]
[EventCountry "USA"]
[TimeControl "6000+10"]
[WhiteClock "1:39:12"]
[BlackClock "0:22:21"]

1. e4 {[%emt 0:00:10]} c5 {[%emt 0:00:26]} 2. Nf3 {[%emt 0:00:11]} e6 {[%emt 0:
00:19]} 3. d4 {[%emt 0:00:11]} cxd4 {[%emt 0:00:10]} 4. Nxd4 {[%emt 0:00:10]}
Nc6 {[%emt 0:00:35]} 5. g3 {[%emt 0:00:11]} Nf6 {[%emt 0:07:58]} 6. Bg2 {
[%emt 0:00:11]} a6 {[%emt 0:02:01]} 7. O-O {[%emt 0:00:11]} Qc7 {[%emt 0:00:46]
} 8. Nc3 {[%emt 0:00:11]} Nxd4 {[%emt 0:04:16]} 9. Qxd4 {[%emt 0:00:11]} Bc5 {
[%emt 0:01:10]} 10. Qd3 {[%emt 0:00:10]} O-O {[%emt 0:11:05]} 11. Bf4 {[%emt 0:
00:11]} d6 {[%emt 0:05:55]} 12. Na4 {[%emt 0:00:10]} e5 {[%emt 0:04:22]} 13.
Bg5 {[%emt 0:00:10]} Be6 {[%emt 0:14:51]} 14. Nxc5 {[%emt 0:00:10]} dxc5 {
[%emt 0:14:35]} 15. Bxf6 {[%emt 0:00:10]} gxf6 {[%emt 0:11:50]} 16. Qe3 {
[%emt 0:00:50]} 1/2-1/2

[Event "48th Continental Open"]
[Site "Sturbridge, MA"]
[Date "2018.08.20"]
[Round "9.9"]
[White "Tanaka, Tyler"]
[Black "Falcao, Wesley"]
[Result "0-1"]
[ECO "B41"]
[WhiteElo "2007"]
[BlackElo "2148"]
[PlyCount "84"]
[EventDate "2018.08.??"]
[EventType "swiss"]
[EventRounds "9"]
[EventCountry "USA"]
[TimeControl "6000+10"]
[WhiteClock "0:08:38"]
[BlackClock "0:01:33"]

1. e4 {[%emt 0:00:10]} c5 2. Nf3 {[%emt 0:00:19]} a6 {[%emt 0:00:34]} 3. c4 {
[%emt 0:00:58]} e6 {[%emt 0:00:38]} 4. d4 {[%emt 0:00:32]} cxd4 {[%emt 0:00:15]
} 5. Nxd4 {[%emt 0:00:12]} Nf6 {[%emt 0:00:14]} 6. Nc3 {[%emt 0:00:15]} d6 {
[%emt 0:07:30]} 7. Be3 {[%emt 0:00:38]} Be7 {[%emt 0:04:48]} 8. Be2 {[%emt 0:
01:08]} O-O {[%emt 0:03:52]} 9. O-O {[%emt 0:00:36]} Bd7 {[%emt 0:08:51]} 10.
Qd2 {[%emt 0:03:59]} Nc6 {[%emt 0:01:14]} 11. Rfd1 {[%emt 0:07:03]} Qc7 {
[%emt 0:13:06]} 12. Rac1 {[%emt 0:03:45]} Rfc8 {[%emt 0:00:44]} 13. a3 {
[%emt 0:01:18]} Be8 {[%emt 0:02:09]} 14. b4 {[%emt 0:02:39]} Ne5 {[%emt 0:08:
41]} 15. h3 {[%emt 0:08:43]} Qb8 {[%emt 0:00:51]} 16. Qa2 {[%emt 0:04:07]} b6 {
[%emt 0:08:49]} 17. f4 {[%emt 0:02:27]} Nc6 {[%emt 0:00:34]} 18. Bd3 {[%emt 0:
00:12]} Ra7 {[%emt 0:00:11]} 19. Qf2 {[%emt 0:04:03]} Bd8 {[%emt 0:03:22]} 20.
Nf3 {[%emt 0:03:49]} Ra8 {[%emt 0:05:03]} 21. Qg3 {[%emt 0:06:15]} Nd7 {
[%emt 0:01:14]} 22. h4 {[%emt 0:04:03]} Bf6 {[%emt 0:05:18]} 23. h5 {[%emt 0:
04:23]} h6 {[%emt 0:00:39]} 24. Qh3 {[%emt 0:03:09]} Bxc3 {[%emt 0:02:02]} 25.
Rxc3 {[%emt 0:00:10]} e5 {[%emt 0:00:18]} 26. Qg3 {[%emt 0:02:33]} Kh8 {
[%emt 0:05:10]} 27. Nh4 {[%emt 0:01:25]} Ne7 {[%emt 0:00:18]} 28. Be2 {[%emt 0:
06:02]} Nf6 {[%emt 0:03:30]} 29. Bf3 {[%emt 0:01:03]} Bc6 {[%emt 0:00:57]} 30.
Rcd3 {[%emt 0:05:58]} Nxe4 {[%emt 0:00:55]} 31. Bxe4 {[%emt 0:00:22]} Bxe4 {
[%emt 0:00:10]} 32. Rxd6 {[%emt 0:00:40]} Rxc4 {[%emt 0:03:46]} 33. fxe5 {
[%emt 0:01:25]} b5 {[%emt 0:05:04]} 34. Rd7 {[%emt 0:07:10]} Qe8 {[%emt 0:01:
26]} 35. R1d6 {[%emt 0:01:08]} Nf5 {[%emt 0:01:29]} 36. Nxf5 {[%emt 0:00:17]}
Bxf5 {[%emt 0:00:10]} 37. Bxh6 {[%emt 0:02:23]} Rg4 {[%emt 0:00:11]} 38. Bxg7+
{[%emt 0:00:59]} Rxg7 {[%emt 0:01:08]} 39. Qe3 {[%emt 0:00:50]} Bxd7 {[%emt 0:
00:36]} 40. Qh6+ {[%emt 0:00:13]} Kg8 {[%emt 0:00:53]} 41. Qf6 {[%emt 0:00:11]}
Rc8 {[%emt 0:00:00]} 42. h6 {[%emt 0:00:50]} Rg6 {[%emt 0:00:00]} 0-1

[Event "48th Continental Open"]
[Site "Sturbridge, MA"]
[Date "2018.08.20"]
[Round "9.12"]
[White "Zhao, Jeffrey Renfei"]
[Black "Ramanathan, Suraj"]
[Result "0-1"]
[ECO "B90"]
[WhiteElo "1827"]
[BlackElo "1961"]
[PlyCount "134"]
[EventDate "2018.08.??"]
[EventType "swiss"]
[EventRounds "9"]
[EventCountry "USA"]
[TimeControl "6000+10"]
[WhiteClock "1:06:25"]
[BlackClock "0:43:04"]

1. e4 {[%emt 0:00:10]} c5 2. Nf3 {[%emt 0:00:15]} d6 {[%emt 0:00:36]} 3. d4 {
[%emt 0:00:10]} cxd4 {[%emt 0:00:17]} 4. Nxd4 {[%emt 0:00:11]} Nf6 {[%emt 0:00:
18]} 5. Nc3 {[%emt 0:00:11]} a6 {[%emt 0:00:24]} 6. Be3 {[%emt 0:00:27]} e5 {
[%emt 0:00:14]} 7. Nb3 {[%emt 0:00:14]} Be7 {[%emt 0:00:13]} 8. Be2 {[%emt 0:
00:24]} Be6 {[%emt 0:00:15]} 9. O-O {[%emt 0:00:41]} O-O {[%emt 0:00:18]} 10.
f4 {[%emt 0:00:11]} exf4 {[%emt 0:00:35]} 11. Bxf4 {[%emt 0:00:13]} Nc6 {
[%emt 0:01:38]} 12. Qd2 {[%emt 0:00:10]} Ne5 {[%emt 0:02:59]} 13. Rad1 {
[%emt 0:00:55]} b5 {[%emt 0:00:27]} 14. a3 {[%emt 0:00:27]} Rc8 {[%emt 0:00:36]
} 15. Nd4 {[%emt 0:01:00]} Qb6 {[%emt 0:02:15]} 16. Kh1 {[%emt 0:00:51]} Qb7 {
[%emt 0:02:27]} 17. Qe3 {[%emt 0:01:46]} Rfd8 {[%emt 0:03:10]} 18. Qg3 {
[%emt 0:04:09]} Nxe4 {[%emt 0:03:57]} 19. Nxe4 {[%emt 0:00:18]} Qxe4 {[%emt 0:
00:11]} 20. Rfe1 {[%emt 0:00:18]} Qg6 {[%emt 0:00:50]} 21. Bxe5 {[%emt 0:05:04]
} dxe5 {[%emt 0:00:25]} 22. Qxg6 {[%emt 0:00:12]} hxg6 {[%emt 0:00:11]} 23.
Nxe6 {[%emt 0:00:10]} fxe6 {[%emt 0:00:11]} 24. Rxd8+ {[%emt 0:00:43]} Bxd8 {
[%emt 0:00:59]} 25. Bd3 {[%emt 0:00:21]} Kf7 {[%emt 0:03:31]} 26. Rxe5 {
[%emt 0:00:11]} Bf6 {[%emt 0:00:11]} 27. Re4 {[%emt 0:00:14]} Bxb2 {[%emt 0:01:
11]} 28. a4 {[%emt 0:00:17]} Bc3 {[%emt 0:01:22]} 29. axb5 {[%emt 0:00:34]}
axb5 {[%emt 0:00:54]} 30. Bxb5 {[%emt 0:00:10]} Rb8 {[%emt 0:00:37]} 31. Bf1 {
[%emt 0:00:15]} Rb1 {[%emt 0:00:36]} 32. Rf4+ {[%emt 0:01:28]} Ke7 {[%emt 0:00:
33]} 33. g3 {[%emt 0:00:15]} Rc1 {[%emt 0:02:36]} 34. Kg2 {[%emt 0:00:10]}
Rxc2+ {[%emt 0:00:23]} 35. Kh3 {[%emt 0:00:15]} g5 {[%emt 0:03:26]} 36. Re4 {
[%emt 0:00:10]} Kf6 {[%emt 0:01:07]} 37. Bc4 {[%emt 0:02:03]} Be5 {[%emt 0:01:
33]} 38. Be2 {[%emt 0:00:10]} Rd2 {[%emt 0:03:26]} 39. Bg4 {[%emt 0:00:12]} Rd6
{[%emt 0:00:11]} 40. Re2 {[%emt 0:01:36]} Bd4 {[%emt 0:00:41]} 41. Re1 {
[%emt 0:00:31]} e5 {[%emt 0:02:31]} 42. Rf1+ {[%emt 0:00:23]} Ke7 {[%emt 0:01:
05]} 43. Bf5 {[%emt 0:00:10]} Rb6 {[%emt 0:01:19]} 44. Kg4 {[%emt 0:00:53]} Rb2
{[%emt 0:00:44]} 45. Kxg5 {[%emt 0:01:51]} Rxh2 {[%emt 0:00:42]} 46. Kg6 {
[%emt 0:01:09]} Rg2 {[%emt 0:01:59]} 47. g4 {[%emt 0:00:10]} e4 {[%emt 0:01:22]
} 48. Bxe4 {[%emt 0:00:16]} Rxg4+ {[%emt 0:00:15]} 49. Kf5 {[%emt 0:00:13]} Rh4
{[%emt 0:00:55]} 50. Rh1 {[%emt 0:01:16]} g6+ {[%emt 0:00:32]} 51. Kxg6 {
[%emt 0:00:18]} Rxe4 {[%emt 0:00:15]} 52. Kf5 {[%emt 0:00:13]} Re2 {[%emt 0:00:
46]} 53. Rh7+ {[%emt 0:00:37]} Kd6 {[%emt 0:00:21]} 54. Rh3 {[%emt 0:01:19]}
Kd5 {[%emt 0:00:22]} 55. Kf4 {[%emt 0:02:06]} Re4+ {[%emt 0:01:45]} 56. Kf3 {
[%emt 0:00:19]} Re3+ {[%emt 0:01:02]} 57. Kg2 {[%emt 0:00:16]} Re2+ {[%emt 0:
00:23]} 58. Kf3 {[%emt 0:00:17]} Rf2+ {[%emt 0:00:13]} 59. Kg3 {[%emt 0:00:13]}
Rf8 {[%emt 0:00:56]} 60. Rh7 {[%emt 0:01:03]} Ke4 {[%emt 0:00:35]} 61. Rh4+ {
[%emt 0:01:15]} Ke3 {[%emt 0:00:10]} 62. Rg4 {[%emt 0:00:13]} Rf1 {[%emt 0:01:
59]} 63. Kg2 {[%emt 0:00:17]} Rf2+ {[%emt 0:00:17]} 64. Kg3 {[%emt 0:01:13]}
Be5+ {[%emt 0:00:18]} 65. Kh4 {[%emt 0:00:10]} Bf4 {[%emt 0:00:45]} 66. Kh5 {
[%emt 0:00:15]} Ke4 {[%emt 0:00:33]} 67. Kg6 {[%emt 0:00:18]} Ra2 {[%emt 0:00:
28]} 0-1

[Event "48th Continental Open"]
[Site "Sturbridge, MA"]
[Date "2018.08.20"]
[Round "9.15"]
[White "Yu, Alex"]
[Black "Cui, Cynthia"]
[Result "1/2-1/2"]
[ECO "C18"]
[WhiteElo "1852"]
[BlackElo "1798"]
[PlyCount "74"]
[EventDate "2018.08.??"]
[EventType "swiss"]
[EventRounds "9"]
[EventCountry "USA"]
[TimeControl "6000+10"]
[WhiteClock "0:02:10"]
[BlackClock "0:01:39"]

1. e4 {[%emt 0:00:10]} e6 {[%emt 0:00:21]} 2. d4 {[%emt 0:00:11]} d5 {[%emt 0:
00:11]} 3. Nc3 {[%emt 0:00:17]} Bb4 {[%emt 0:00:11]} 4. e5 {[%emt 0:00:19]} c5
{[%emt 0:00:10]} 5. a3 {[%emt 0:00:24]} Bxc3+ {[%emt 0:00:10]} 6. bxc3 {
[%emt 0:00:10]} Qa5 {[%emt 0:00:15]} 7. Bd2 {[%emt 0:01:13]} Qa4 {[%emt 0:00:
10]} 8. Bd3 {[%emt 0:03:43]} b6 {[%emt 0:00:57]} 9. f4 {[%emt 0:03:21]} Ba6 {
[%emt 0:04:31]} 10. Bxa6 {[%emt 0:03:08]} Qxa6 {[%emt 0:00:55]} 11. Nf3 {
[%emt 0:00:48]} Ne7 {[%emt 0:00:38]} 12. a4 {[%emt 0:10:44]} Nbc6 {[%emt 0:03:
49]} 13. Qb1 {[%emt 0:07:23]} Na5 {[%emt 0:14:29]} 14. Qb5+ {[%emt 0:03:52]}
Qxb5 {[%emt 0:00:14]} 15. axb5 {[%emt 0:00:18]} Rc8 {[%emt 0:04:27]} 16. Ra2 {
[%emt 0:06:50]} Rc7 {[%emt 0:07:45]} 17. Ke2 {[%emt 0:07:00]} O-O {[%emt 0:05:
09]} 18. Rha1 {[%emt 0:02:18]} Rfc8 {[%emt 0:08:10]} 19. Ne1 {[%emt 0:17:20]}
cxd4 {[%emt 0:08:26]} 20. cxd4 {[%emt 0:00:38]} Nf5 {[%emt 0:00:14]} 21. Bxa5 {
[%emt 0:08:27]} bxa5 {[%emt 0:03:03]} 22. Rxa5 {[%emt 0:00:10]} Nxd4+ {[%emt 0:
02:37]} 23. Kd1 {[%emt 0:05:50]} Rb7 {[%emt 0:07:23]} 24. Rxa7 {[%emt 0:06:26]}
Rxa7 {[%emt 0:00:51]} 25. Rxa7 {[%emt 0:00:22]} Nxb5 {[%emt 0:00:18]} 26. Rb7 {
[%emt 0:01:41]} Nc3+ {[%emt 0:02:41]} 27. Kd2 {[%emt 0:00:26]} g6 {[%emt 0:00:
58]} 28. Nd3 {[%emt 0:02:27]} Ne4+ {[%emt 0:01:39]} 29. Kc1 {[%emt 0:01:28]}
Nc5 {[%emt 0:03:57]} 30. Nxc5 {[%emt 0:00:22]} Rxc5 {[%emt 0:00:10]} 31. Kd2 {
[%emt 0:03:33]} Rc4 {[%emt 0:01:34]} 32. g3 {[%emt 0:00:10]} h5 {[%emt 0:01:13]
} 33. Ra7 {[%emt 0:01:23]} Kg7 {[%emt 0:00:21]} 34. Kd3 {[%emt 0:00:38]} h4 {
[%emt 0:04:13]} 35. Rb7 {[%emt 0:00:10]} hxg3 {[%emt 0:02:58]} 36. hxg3 {
[%emt 0:00:10]} Re4 {[%emt 0:02:08]} 37. Rc7 {[%emt 0:00:10]} Ra4 {[%emt 0:07:
25]} 1/2-1/2

[Event "48th Continental Open"]
[Site "Sturbridge, MA"]
[Date "2018.08.20"]
[Round "9.16"]
[White "Procyk, Marijan"]
[Black "Taylor, Steven"]
[Result "0-1"]
[ECO "D37"]
[WhiteElo "1940"]
[BlackElo "2081"]
[PlyCount "56"]
[EventDate "2018.08.??"]
[EventType "swiss"]
[EventRounds "9"]
[EventCountry "USA"]
[TimeControl "6000+10"]
[WhiteClock "1:05:12"]
[BlackClock "0:24:57"]

1. d4 {[%emt 0:00:10]} d5 2. c4 {[%emt 0:00:15]} e6 {[%emt 0:00:33]} 3. Nc3 {
[%emt 0:00:17]} Be7 {[%emt 0:00:12]} 4. Nf3 {[%emt 0:01:45]} Nf6 {[%emt 0:00:
18]} 5. Bf4 {[%emt 0:01:04]} O-O {[%emt 0:01:18]} 6. e3 {[%emt 0:00:17]} c5 {
[%emt 0:01:08]} 7. dxc5 {[%emt 0:02:22]} Qa5 {[%emt 0:03:57]} 8. Bd6 {[%emt 0:
00:54]} Bxd6 {[%emt 0:03:22]} 9. cxd6 {[%emt 0:00:16]} Rd8 {[%emt 0:00:23]} 10.
Qa4 {[%emt 0:00:36]} Qxa4 {[%emt 0:00:46]} 11. Nxa4 {[%emt 0:00:16]} Rxd6 {
[%emt 0:05:43]} 12. c5 {[%emt 0:00:18]} Rd8 {[%emt 0:00:24]} 13. b4 {[%emt 0:
00:36]} Nc6 {[%emt 0:05:57]} 14. a3 {[%emt 0:01:18]} Bd7 {[%emt 0:02:40]} 15.
Nc3 {[%emt 0:01:09]} a5 {[%emt 0:09:20]} 16. b5 {[%emt 0:02:58]} Na7 {[%emt 0:
04:33]} 17. Rb1 {[%emt 0:00:21]} Rac8 {[%emt 0:01:14]} 18. Na4 {[%emt 0:00:24]}
Ne4 {[%emt 0:01:05]} 19. Ne5 {[%emt 0:05:38]} Be8 {[%emt 0:10:00]} 20. f3 {
[%emt 0:07:45]} Nxc5 {[%emt 0:03:59]} 21. Nb6 {[%emt 0:00:22]} Rc7 {[%emt 0:00:
49]} 22. a4 {[%emt 0:04:34]} Nc8 {[%emt 0:04:50]} 23. Na8 {[%emt 0:00:25]} Re7
{[%emt 0:01:03]} 24. b6 {[%emt 0:01:09]} Nxa4 {[%emt 0:06:41]} 25. Kd2 {
[%emt 0:01:30]} f6 {[%emt 0:02:29]} 26. Ng4 {[%emt 0:01:46]} Nd6 {[%emt 0:05:
50]} 27. Nc7 {[%emt 0:00:16]} Nxb6 {[%emt 0:00:25]} 28. Nxe8 {[%emt 0:00:47]}
Nbc4+ {[%emt 0:00:54]} 0-1

[Event "48th Continental Open"]
[Site "Sturbridge, MA"]
[Date "2018.08.20"]
[Round "9.17"]
[White "Riddell, Connor"]
[Black "Sage, J Timothy"]
[Result "0-1"]
[ECO "B00"]
[WhiteElo "1716"]
[BlackElo "2036"]
[PlyCount "58"]
[EventDate "2018.08.??"]
[EventType "swiss"]
[EventRounds "9"]
[EventCountry "USA"]
[TimeControl "6000+10"]
[WhiteClock "0:13:20"]
[BlackClock "0:17:28"]

1. e4 {[%emt 0:00:10]} Nc6 2. Nf3 {[%emt 0:00:13]} d6 {[%emt 0:00:31]} 3. d4 {
[%emt 0:00:50]} Nf6 {[%emt 0:00:25]} 4. Nc3 {[%emt 0:05:56]} g6 {[%emt 0:00:25]
} 5. h3 {[%emt 0:03:19]} Bg7 {[%emt 0:00:45]} 6. Be3 {[%emt 0:00:12]} O-O {
[%emt 0:00:36]} 7. Be2 {[%emt 0:01:33]} e5 {[%emt 0:01:45]} 8. dxe5 {[%emt 0:
00:49]} Nxe5 {[%emt 0:01:08]} 9. O-O {[%emt 0:16:07]} Nxf3+ {[%emt 0:00:11]}
10. Bxf3 {[%emt 0:00:12]} Re8 {[%emt 0:01:00]} 11. Qd2 {[%emt 0:01:50]} Be6 {
[%emt 0:04:32]} 12. Rad1 {[%emt 0:03:12]} Nd7 {[%emt 0:21:03]} 13. Be2 {
[%emt 0:17:12]} Nb6 {[%emt 0:04:38]} 14. b3 {[%emt 0:01:51]} Bd7 {[%emt 0:01:
36]} 15. Bd4 {[%emt 0:00:36]} Bc6 {[%emt 0:05:40]} 16. Bxg7 {[%emt 0:01:56]}
Kxg7 {[%emt 0:00:30]} 17. f4 {[%emt 0:00:30]} Nd7 {[%emt 0:06:16]} 18. Bf3 {
[%emt 0:09:07]} f6 {[%emt 0:14:47]} 19. b4 {[%emt 0:05:32]} a6 {[%emt 0:02:37]}
20. g4 {[%emt 0:02:41]} g5 {[%emt 0:10:12]} 21. h4 {[%emt 0:00:21]} h6 {
[%emt 0:00:40]} 22. hxg5 {[%emt 0:05:54]} hxg5 {[%emt 0:00:34]} 23. Kg2 {
[%emt 0:00:35]} Nf8 {[%emt 0:01:06]} 24. Rh1 {[%emt 0:02:30]} Ng6 {[%emt 0:01:
08]} 25. fxg5 {[%emt 0:02:20]} fxg5 {[%emt 0:00:11]} 26. Nd5 {[%emt 0:00:17]}
Bxd5 {[%emt 0:01:25]} 27. exd5 {[%emt 0:00:26]} Qf6 {[%emt 0:01:10]} 28. Qd4 {
[%emt 0:02:57]} Re5 {[%emt 0:01:47]} 29. Rdf1 {[%emt 0:02:22]} Re2+ {[%emt 0:
00:54]} 0-1